bitfinex-derivatives/quotes_SOLF0:USTF0_20230402
["timestamp","ask_amount","ask_price","bid_price","bid_amount"]
[1680463627198,21.58133722,20.557,20.547,73.18455922]
[1680463627398,21.58133722,20.556,20.547,73.18455922]
[1680463627599,24.01,20.558,20.547,73.18455922]
[1680463627800,21.5812903,20.557,20.547,73.18455922]
[1680463628001,21.5812903,20.556,20.547,73.18455922]
[1680463628299,24.01,20.558,20.547,73.18455922]
[1680463628495,21.58132746,20.557,20.547,73.18455922]
[1680463628698,21.58132746,20.556,20.547,73.18455922]
[1680463628905,21.58132746,20.555,20.547,24.24155922]
[1680463629105,24.01,20.558,20.547,24.24155922]
[1680463629301,21.58394712,20.557,20.547,24.24155922]
[1680463629601,21.58394712,20.556,20.547,24.24155922]
[1680463629804,24.01,20.558,20.547,24.24155922]
[1680463630006,21.57674608,20.557,20.547,24.24155922]
[1680463630202,21.57674608,20.556,20.547,24.24155922]
[1680463630505,24.01,20.558,20.547,24.24155922]
[1680463630698,1.78868833,20.557,20.547,24.24155922]
[1680463631297,19.79573022,20.556,20.547,24.24155922]
[1680463631702,24.25,20.554,20.547,0.06155922]
[1680463632107,24.25,20.553,20.547,0.06155922]
[1680463632305,24.25,20.553,20.543,0.06819408]
[1680463657218,70.2783,20.554,20.544,24.02]
[1680463677136,19.35,20.552,20.545,19.4]
[1680463682035,19.35,20.553,20.546,19.4]
[1680463682538,19.39,20.55,20.543,19.46819408]
[1680463701255,19.39,20.553,20.546,19.4]
[1680463701754,46.0783,20.554,20.548,19.4]
[1680463706454,46.0783,20.554,20.548,19.21]
[1680463708054,19.42848931,20.555,20.548,19.21]
[1680463708356,19.79026062,20.554,20.548,19.21]
[1680463715459,19.42848931,20.555,20.548,19.21]
[1680463718861,19.42848931,20.555,20.548,33.91859363]
[1680463721062,19.22,20.552,20.545,19.21]
[1680463736065,19.34,20.552,20.545,19.25]
[1680463741969,19.34,20.552,20.543,0.06819408]
[1680463742171,19.4,20.553,20.546,19.38]
[1680463751969,19.4,20.553,20.545,19.38]
[1680463759879,19.4,20.549,20.543,0.06819408]
[1680463760078,19.4,20.549,20.542,19.25]
[1680463761581,19.4,20.544,20.539,0.06581197]
[1680463761782,19.4,20.544,20.536,33.78206747]
[1680463766377,19.41,20.544,20.536,33.77206747]
[1680463771995,19.36,20.543,20.536,33.81206747]
[1680463782007,19.41,20.544,20.537,19.37]
[1680463792014,19.36,20.543,20.536,33.81206747]
[1680463792209,19.36,20.543,20.536,19.41]
[1680463798518,19.36,20.543,20.534,14.41488599]
[1680463798519,19.41,20.546,20.539,19.41]
[1680463800814,19.41,20.548,20.542,19.41]
[1680463805820,19.41,20.546,20.539,19.41]
[1680463819231,19.41,20.546,20.538,0.06742866]
[1680463819435,19.39,20.544,20.538,0.06742866]
[1680463819637,19.39,20.544,20.536,19.41]
[1680463821935,48.1312,20.548,20.534,14.4221855]
[1680463821936,19.39,20.546,20.539,19.41]
[1680463824235,19.39,20.546,20.535,5.0]
[1680463824439,19.4708206,20.549,20.542,19.41]
[1680463824939,19.39,20.546,20.539,19.41]
[1680463827236,24.06,20.548,20.538,0.06373848]
[1680463835946,0.0608206,20.549,20.546,24.07]
[1680463836146,46.5594,20.553,20.546,24.07]
[1680463851262,0.0680828,20.555,20.546,24.07]
[1680463851467,0.0680828,20.555,20.548,24.07]
[1680463857367,0.0680828,20.555,20.549,24.23]
[1680463857571,19.80486682,20.556,20.549,24.23]
[1680463857766,24.2981924,20.559,20.549,24.23]
[1680463857963,21.59422352,20.558,20.549,24.23]
[1680463858168,21.59422352,20.557,20.549,24.23]
[1680463858368,19.80543354,20.556,20.549,24.23]
[1680463858569,19.80543354,20.558,20.549,24.23]
[1680463858773,1.7887921,20.557,20.549,24.23]
[1680463858971,19.80543354,20.556,20.549,24.23]
[1680463859471,24.2981924,20.559,20.549,24.23]
[1680463859671,21.59433231,20.558,20.549,24.23]
[1680463859864,21.59433231,20.557,20.549,24.23]
[1680463860071,19.80553752,20.556,20.549,24.23]
[1680463860272,19.80553752,20.558,20.549,24.23]
[1680463860473,21.59420502,20.557,20.549,24.23]
[1680463860772,19.80541121,20.556,20.549,24.23]
[1680463860973,24.2981924,20.559,20.549,24.23]
[1680463861173,21.59422829,20.558,20.549,24.23]
[1680463861473,21.59422829,20.557,20.549,24.23]
[1680463861768,24.2981924,20.559,20.549,24.23]
[1680463871980,0.0681924,20.559,20.551,24.23]
[1680463873685,24.2981924,20.559,20.548,24.23]
[1680463881990,24.23,20.557,20.546,85.619225]
[1680463885091,0.0681924,20.559,20.549,24.23]
[1680463887095,19.27,20.558,20.551,19.39]
[1680463888596,19.38,20.558,20.551,19.38]
[1680463915418,0.0681924,20.559,20.555,19.38]
[1680463915717,19.44607325,20.564,20.557,19.38]
[1680463915919,19.38,20.564,20.557,19.38]
[1680463919218,19.22,20.564,20.557,19.31]
[1680463922121,19.22,20.563,20.556,19.37]
[1680463923218,19.22,20.56,20.553,19.37263267]
[1680463931628,19.22,20.558,20.553,0.06263267]
[1680463931829,100.06418551,20.564,20.548,19.44069578]
[1680463931830,19.22,20.555,20.548,19.44069578]
[1680463932028,19.22,20.553,20.548,0.07069578]
[1680463932327,19.22,20.553,20.546,34.210425]
[1680463937134,0.06069977,20.558,20.546,14.840425]
[1680463937135,24.19,20.555,20.546,14.840425]
[1680463937335,24.19,20.555,20.544,24.24]
[1680463942038,24.24,20.554,20.543,24.30342934]
[1680463944944,24.24,20.55,20.543,0.06342934]
[1680463945340,24.19,20.547,20.543,0.06342934]
[1680463945540,24.19,20.547,20.538,0.06625899]
[1680463949547,24.26,20.548,20.538,0.06625899]
[1680463955546,45.5238,20.549,20.541,24.06]
[1680463958054,0.0709327,20.55,20.541,24.06]
[1680463958258,0.0709327,20.55,20.544,24.06]
[1680463958449,24.32466202,20.554,20.544,24.06]
[1680463976363,24.26,20.551,20.54,24.26]
[1680463980167,24.26,20.547,20.538,0.06625899]
[1680463980765,24.26,20.545,20.538,0.06625899]
[1680463982564,0.06672345,20.55,20.538,0.06625899]
[1680463982565,24.05,20.54,20.538,0.06625899]
[1680463982869,24.05,20.54,20.532,0.06546401]
[1680463983064,24.05,20.54,20.529,24.2881167]
[1680463983466,24.26,20.537,20.529,0.0681167]
[1680463983765,24.26,20.537,20.529,14.798955]
[1680463983963,24.26,20.537,20.529,0.0681167]
[1680463986571,44.9469,20.536,20.529,0.0681167]
[1680463992371,24.26,20.533,20.529,0.0081167]
[1680463992674,24.05,20.53,20.523,14.91815258]
[1680463992970,24.05,20.53,20.519,24.22]
[1680463995273,24.26,20.527,20.517,0.06345484]
[1680463997065,24.26,20.524,20.517,0.06345484]
[1680463997271,69.3918,20.529,20.517,0.06345484]
[1680463997272,24.26,20.521,20.517,0.06345484]
[1680463997465,24.26,20.521,20.512,0.06638716]
[1680463997673,24.26,20.521,20.509,29.32708119]
[1680463997873,24.26,20.521,20.509,24.32708119]
[1680464001375,24.26,20.521,20.509,39.26451854]
[1680464001978,24.33075433,20.524,20.513,24.26]
[1680464003479,0.07075433,20.524,20.517,24.22]
[1680464006677,24.33075433,20.524,20.513,24.33011808]
[1680464007783,24.26,20.517,20.513,0.07011808]
[1680464007984,24.26,20.517,20.508,0.06023431]
[1680464008581,24.26,20.517,20.508,14.69507621]
[1680464008781,0.06170559,20.52,20.508,14.69507621]
[1680464008782,24.05,20.519,20.508,24.23023431]
[1680464008983,0.06170559,20.52,20.511,24.17]
[1680464009479,24.32170559,20.52,20.509,24.26]
[1680464009783,24.05,20.517,20.508,0.06023431]
[1680464011984,24.33,20.515,20.508,0.06023431]
[1680464013580,24.33,20.518,20.508,0.06023431]
[1680464014484,44.5714,20.519,20.508,0.06023431]
[1680464014485,24.33,20.515,20.508,0.06023431]
[1680464020090,44.5714,20.519,20.512,24.11]
[1680464020588,44.5714,20.519,20.508,0.06023431]
[1680464020791,24.33,20.517,20.508,0.06023431]
[1680464023889,24.13,20.514,20.508,0.06023431]
[1680464024093,24.13,20.511,20.504,0.06889149]
[1680464024393,0.13881867,20.508,20.504,0.06889149]
[1680464024691,0.13881867,20.508,20.5,24.11]
[1680464025283,0.13881867,20.508,20.5,38.37053773]
[1680464027690,24.34,20.505,20.499,0.07038234]
[1680464027888,24.33,20.5,20.495,0.06133062]
[1680464028089,24.34,20.496,20.486,5.0]
[1680464028297,24.33,20.493,20.484,0.06499691]
[1680464028499,24.33,20.493,20.481,24.19154246]
[1680464028994,24.33,20.493,20.482,5.0]
[1680464029289,70.8122,20.495,20.482,5.0]
[1680464029694,70.8122,20.495,20.481,0.06154246]
[1680464029889,70.8122,20.495,20.484,24.11]
[1680464030893,24.34,20.501,20.485,170.46]
[1680464031097,24.33,20.503,20.492,24.11]
[1680464032193,0.06342564,20.505,20.492,36.27]
[1680464032697,0.06342564,20.505,20.49,0.06822175]
[1680464032894,44.63882564,20.505,20.49,0.06822175]
[1680464033198,36.44,20.5,20.49,0.06822175]
[1680464034997,36.2,20.497,20.49,0.06822175]
[1680464037800,36.60348499,20.501,20.49,0.06822175]
[1680464042203,0.06348499,20.501,20.49,0.06822175]
[1680464042905,36.27,20.5,20.49,0.06822175]
[1680464043303,36.57,20.497,20.49,0.06822175]
[1680464044305,36.43,20.5,20.49,0.06822175]
[1680464044706,0.06348499,20.501,20.49,0.06822175]
[1680464047997,36.57,20.499,20.49,0.06822175]
[1680464048200,47.2532,20.498,20.49,0.06822175]
[1680464050307,36.41,20.496,20.49,0.06822175]
[1680464050501,36.41,20.496,20.486,0.06106756]
[1680464052904,36.41,20.494,20.486,0.06106756]
[1680464053503,36.43,20.487,20.486,0.06106756]
[1680464053708,36.41,20.492,20.479,0.06720934]
[1680464054509,0.06843676,20.493,20.481,36.57]
[1680464054906,0.06843676,20.493,20.484,100.0]
[1680464055111,0.06843676,20.493,20.488,36.55]
[1680464055311,47.32090581,20.498,20.488,36.33907982]
[1680464055912,83.83090581,20.498,20.485,5.0]
[1680464056203,83.83090581,20.498,20.483,0.06561819]
[1680464056204,36.57,20.495,20.483,0.06561819]
[1680464058710,36.51,20.493,20.483,0.06561819]
[1680464059511,36.34,20.49,20.483,0.06561819]
[1680464060414,36.41,20.486,20.472,36.36]
[1680464061414,36.43,20.482,20.472,0.07044717]
[1680464061611,46.8494,20.481,20.472,0.07044717]
[1680464063517,36.51,20.475,20.472,0.07044717]
[1680464063708,36.51,20.475,20.466,0.06855095]
[1680464063912,36.51,20.475,20.463,0.06749571]
[1680464064718,36.57267981,20.478,20.464,36.36]
[1680464064913,36.57267981,20.478,20.464,136.36]
[1680464065117,0.06267981,20.478,20.467,36.2]
[1680464065317,36.43,20.477,20.463,36.61749571]
[1680464065514,36.43,20.477,20.464,100.0]
[1680464067116,0.06267981,20.478,20.466,36.2]
[1680464069816,0.06267981,20.478,20.469,36.5]
[1680464072929,0.06267981,20.478,20.469,36.45]
[1680464075624,36.62,20.489,20.476,36.62]
[1680464080834,0.06863363,20.49,20.479,36.62]
[1680464086342,0.06863363,20.49,20.482,36.45]
[1680464087139,0.06863363,20.49,20.479,36.59]
[1680464087444,36.62,20.489,20.478,47.5636]
[1680464088537,36.62,20.489,20.475,51.48077174]
[1680464088840,36.62,20.486,20.475,0.07036694]
[1680464089044,45.4847,20.485,20.475,0.07036694]
[1680464099756,36.54,20.482,20.475,0.07036694]
[1680464102254,36.54,20.482,20.475,0.00509661]
[1680464103557,36.3,20.481,20.475,0.00509661]
[1680464103751,36.3,20.481,20.471,0.06708044]
[1680464103955,36.3,20.481,20.469,0.06365506]
[1680464110162,0.0649102,20.483,20.474,36.63]
[1680464112063,0.0649102,20.483,20.474,24.41]
[1680464117670,0.0649102,20.483,20.476,24.17]
[1680464120971,0.0649102,20.483,20.474,48.8051]
[1680464121167,0.0649102,20.483,20.473,24.17]
[1680464121364,24.41,20.48,20.47,24.41]
[1680464122173,84.5608,20.482,20.469,0.06365506]
[1680464122572,47.9308,20.482,20.471,36.38]
[1680464129179,0.0649102,20.483,20.471,36.38]
[1680464129371,0.0649102,20.483,20.474,36.63]
[1680464133879,0.0649102,20.483,20.476,36.46]
[1680464138780,0.0649102,20.483,20.479,36.26]
[1680464138984,0.06780013,20.488,20.479,36.26]
[1680464148884,0.06780013,20.488,20.476,36.6]
[1680464149388,36.6,20.487,20.474,36.34864665]
[1680464149589,36.6,20.485,20.474,0.06864665]
[1680464151691,36.40780013,20.488,20.474,36.32864665]
[1680464152488,36.23,20.486,20.474,0.06864665]
[1680464152690,47.1329,20.485,20.474,0.06864665]
[1680464169299,36.6,20.481,20.474,0.06864665]
[1680464178212,36.29,20.475,20.462,49.3058]
[1680464178499,47.1329,20.485,20.454,47.889]
[1680464178500,36.58,20.472,20.454,47.889]
[1680464178706,36.58,20.472,20.458,36.6]
[1680464179108,36.64837867,20.472,20.458,36.66565873]
[1680464179304,0.06837867,20.472,20.462,36.6]
[1680464180905,36.66837867,20.472,20.458,36.66565873]
[1680464182204,24.44,20.47,20.459,24.34]
[1680464184406,24.44,20.467,20.458,0.06565873]
[1680464184604,44.6412,20.466,20.458,0.06565873]
[1680464187611,24.44,20.465,20.458,0.06565873]
[1680464187812,44.6412,20.466,20.458,0.06565873]
[1680464188409,24.35,20.465,20.458,0.06565873]
[1680464196413,24.43,20.463,20.458,0.06565873]
[1680464196611,24.43,20.463,20.453,0.06759917]
[1680464196815,24.46,20.463,20.453,0.06759917]
[1680464198515,24.37,20.465,20.454,24.27]
[1680464203224,24.46,20.462,20.453,0.06759917]
[1680464206225,69.1012,20.466,20.455,24.27]
[1680464207925,44.6412,20.466,20.458,24.24]
[1680464208223,44.6412,20.466,20.462,24.24]
[1680464208825,0.06604327,20.468,20.462,24.24]
[1680464209026,0.06239287,20.472,20.462,24.24]
[1680464212130,0.06239287,20.472,20.464,24.46]
[1680464214940,0.06239287,20.472,20.467,24.24]
[1680464215131,0.06123812,20.477,20.467,24.24]
[1680464220642,0.06123812,20.477,20.463,5.0]
[1680464220843,24.37,20.475,20.462,14.72670938]
[1680464221234,24.37,20.475,20.464,24.46]
[1680464227547,24.37,20.475,20.465,5.0]
[1680464227847,0.06123812,20.477,20.468,24.46]
[1680464228046,0.06123812,20.477,20.468,24.42]
[1680464233351,0.06123812,20.477,20.471,24.26]
[1680464233648,24.48653377,20.481,20.471,24.26]
[1680464233855,24.48653377,20.481,20.474,24.26]
[1680464233856,0.06653377,20.481,20.474,24.26]
[1680464234048,0.06653377,20.481,20.477,24.42]
[1680464234249,0.06128069,20.486,20.477,24.42]
[1680464235751,0.06128069,20.486,20.472,5.06807357]
[1680464236051,24.38128069,20.486,20.475,24.42]
[1680464252163,24.42,20.484,20.473,38.91015372]
[1680464252367,24.42,20.484,20.473,24.19]
[1680464253067,0.06128069,20.486,20.476,24.26]
[1680464257770,0.06128069,20.486,20.477,49.1603]
[1680464259172,24.30128069,20.486,20.477,49.1603]
[1680464266079,24.2,20.485,20.473,14.51402522]
[1680464266279,24.2,20.485,20.472,0.06807357]
[1680464266280,24.4,20.478,20.472,0.06807357]
[1680464266481,24.4,20.478,20.468,0.0633443]
[1680464266781,24.4,20.475,20.466,0.06673284]
[1680464273782,24.24,20.472,20.466,0.06673284]
[1680464273981,24.24,20.472,20.462,14.66320522]
[1680464273982,24.24,20.472,20.462,14.73350206]
[1680464274179,24.2,20.469,20.462,0.07029684]
[1680464276385,24.4,20.465,20.462,0.07029684]
[1680464276586,24.4,20.465,20.456,0.06964133]
[1680464279787,24.4702266,20.468,20.458,24.28]
[1680464281586,24.4702266,20.468,20.456,0.06964133]
[1680464281889,24.4702266,20.468,20.458,24.4]
[1680464285593,0.0702266,20.468,20.459,24.24]
[1680464285794,0.0702266,20.468,20.463,24.4]
[1680464285994,0.06212881,20.473,20.463,24.4]
[1680464286890,0.06212881,20.473,20.461,0.070675]
[1680464286891,24.4,20.471,20.461,0.070675]
[1680464287091,24.4,20.468,20.461,0.070675]
[1680464287294,24.4,20.465,20.461,0.070675]
[1680464287495,24.4,20.465,20.456,0.0613768]
[1680464287697,24.4,20.465,20.453,24.30243046]
[1680464289796,24.46,20.465,20.453,24.34243046]
[1680464290192,0.06734001,20.468,20.453,0.06243046]
[1680464290193,24.46,20.459,20.453,0.06243046]
[1680464290501,24.46,20.459,20.449,0.06800749]
[1680464292197,36.46,20.459,20.449,0.06800749]
[1680464294693,36.71,20.455,20.449,0.06800749]
[1680464294896,0.06562833,20.449,20.438,51.55469031]
[1680464295197,0.06562833,20.449,20.435,36.41]
[1680464295789,36.46,20.45,20.449,0.10083038]
[1680464299607,36.46,20.45,20.442,0.06459305]
[1680464299900,36.71,20.443,20.442,0.06459305]
[1680464300205,73.18,20.443,20.426,46.3064]
[1680464300405,36.71,20.436,20.426,46.3064]
[1680464300903,36.71,20.445,20.429,36.41]
[1680464301200,0.06158229,20.444,20.433,36.41]
[1680464301504,36.57,20.451,20.436,36.39]
[1680464301698,36.71,20.454,20.439,36.41]
[1680464302102,36.71,20.458,20.444,36.39]
[1680464302304,36.71,20.462,20.448,36.71]
[1680464302504,0.06290585,20.462,20.451,36.71]
[1680464302804,0.06290585,20.462,20.453,36.39]
[1680464303008,36.46,20.471,20.457,36.41]
[1680464303301,36.71,20.474,20.46,36.71]
[1680464303508,36.71,20.477,20.463,36.49]
[1680464303805,1.79588402,20.476,20.463,36.49]
[1680464304205,36.770813,20.477,20.463,36.49]
[1680464305009,0.060813,20.477,20.467,36.71]
[1680464305496,0.060813,20.477,20.47,36.39]
[1680464306103,0.060813,20.477,20.473,36.71]
[1680464306303,48.8974,20.481,20.473,36.71]
[1680464306906,48.8974,20.481,20.47,36.41]
[1680464307101,48.8974,20.481,20.466,0.06722631]
[1680464307102,1.79560569,20.48,20.466,0.06722631]
[1680464307299,48.87,20.472,20.456,48.85]
[1680464307900,48.65,20.469,20.453,48.87]
[1680464308604,0.06577732,20.468,20.454,0.06665704]
[1680464308806,47.90997732,20.468,20.455,48.87]
[1680464309009,47.90997732,20.468,20.458,48.6]
[1680464314015,47.90997732,20.468,20.454,96.70265704]
[1680464314409,48.87,20.466,20.454,47.83265704]
[1680464320418,48.48,20.466,20.454,47.83265704]
[1680464321117,48.48,20.466,20.454,0.06665704]
[1680464321318,48.92,20.463,20.454,0.06665704]
[1680464322121,48.92,20.461,20.454,0.06665704]
[1680464322919,48.92,20.464,20.454,0.06665704]
[1680464324824,48.92,20.467,20.454,0.06665704]
[1680464329724,48.92,20.461,20.454,0.06665704]
[1680464332629,48.92,20.459,20.454,0.00412161]
[1680464332829,48.92,20.459,20.444,5.0]
[1680464333028,48.92,20.459,20.443,48.92]
[1680464333429,44.5809,20.458,20.443,48.92]
[1680464333728,44.64971415,20.458,20.443,48.982778]
[1680464335637,48.92,20.451,20.443,0.062778]
[1680464339335,48.92,20.455,20.443,0.062778]
[1680464349135,93.56971415,20.458,20.443,0.062778]
[1680464349739,44.64971415,20.458,20.446,48.92]
[1680464349934,44.64971415,20.458,20.449,48.75]
[1680464350742,48.5,20.467,20.452,48.66]
[1680464351641,48.57046895,20.467,20.452,48.72304767]
[1680464355541,48.57046895,20.467,20.452,0.06304767]
[1680464355740,48.5,20.465,20.452,0.06304767]
[1680464362053,48.5,20.462,20.452,0.06304767]
[1680464362248,45.0675,20.461,20.452,0.06304767]
[1680464363956,48.79,20.459,20.443,48.66]
[1680464364450,48.92,20.456,20.44,48.61]
[1680464364754,0.0707386,20.455,20.441,0.06895029]
[1680464372255,36.5,20.453,20.441,0.06895029]
[1680464372455,45.9448,20.452,20.441,0.06895029]
[1680464377057,36.66,20.45,20.441,0.06895029]
[1680464380665,36.74,20.45,20.441,0.06895029]
[1680464395082,45.9448,20.452,20.441,0.06895029]
[1680464401182,45.9448,20.452,20.444,36.74]
[1680464403484,45.9448,20.452,20.441,0.06895029]
[1680464405483,36.74,20.45,20.441,0.06895029]
[1680464409186,45.9448,20.452,20.441,0.06895029]
[1680464410489,36.74,20.442,20.441,0.06895029]
[1680464410679,36.74,20.442,20.434,0.068674]
[1680464410882,36.62,20.442,20.432,14.76187333]
[1680464411188,36.62,20.442,20.431,0.06228706]
[1680464411988,36.77,20.44,20.431,0.06228706]
[1680464421992,36.77,20.438,20.431,0.06228706]
[1680464432100,24.34,20.438,20.431,0.06228706]
[1680464438305,24.46,20.434,20.431,0.00228706]
[1680464438604,24.46,20.434,20.423,24.5]
[1680464439300,5.0,20.44,20.421,0.0641401]
[1680464439301,24.46,20.431,20.421,0.0641401]
[1680464440104,24.29,20.428,20.421,0.0641401]
[1680464440505,46.2689,20.43,20.421,0.0641401]
[1680464441511,24.46,20.428,20.421,0.0641401]
[1680464441810,24.51,20.428,20.421,0.0641401]
[1680464442012,70.7789,20.43,20.421,0.0641401]
[1680464447708,24.54,20.427,20.421,0.0641401]
[1680464448006,24.54,20.427,20.418,15.00055527]
[1680464448216,24.54,20.427,20.417,0.06807829]
[1680464448413,24.54,20.424,20.417,0.06807829]
[1680464448715,24.54,20.424,20.417,14.93392442]
[1680464448925,24.54,20.424,20.417,0.06807829]
[1680464449415,24.54,20.421,20.417,0.06807829]
[1680464449606,24.54,20.421,20.412,0.06888672]
[1680464450615,0.07147726,20.424,20.413,24.34]
[1680464451512,0.07147726,20.424,20.416,24.34]
[1680464452517,24.51,20.423,20.412,24.35888672]
[1680464454413,24.54,20.42,20.412,0.06888672]
[1680464454618,46.6762,20.419,20.412,0.06888672]
[1680464456821,46.6762,20.419,20.412,24.40888672]
[1680464457216,24.51,20.423,20.412,24.40888672]
[1680464457616,24.51,20.423,20.416,24.29]
[1680464457921,0.07147726,20.424,20.416,24.29]
[1680464459717,24.61147726,20.424,20.413,124.34]
[1680464459917,24.61147726,20.424,20.414,8.99192028]
[1680464461623,24.61147726,20.424,20.413,24.42]
[1680464462324,49.08,20.414,20.386,271.62127343]
[1680464462620,49.08,20.387,20.346,67.94359971]
[1680464462818,24.54,20.374,20.347,202.33669238]
[1680464463124,24.51,20.361,20.348,165.17393829]
[1680464463418,100.0,20.381,20.349,9.0142592]
[1680464463419,24.54,20.358,20.349,9.0142592]
[1680464463621,24.51,20.367,20.353,100.0]
[1680464463822,24.51,20.37,20.358,24.42]
[1680464464014,5.0,20.373,20.362,24.54]
[1680464464325,5.0,20.373,20.339,67.94359971]
[1680464464326,24.51,20.363,20.335,67.94359971]
[1680464464519,24.51,20.355,20.35,5.0]
[1680464465118,0.06789778,20.36,20.35,5.0]
[1680464465419,24.54,20.353,20.338,24.29]
[1680464465625,24.51,20.362,20.344,100.0]
[1680464465922,24.51,20.362,20.339,33.54442173]
[1680464465923,24.54,20.374,20.345,9.02442173]
[1680464466122,24.54,20.353,20.343,5.0]
[1680464466423,24.51,20.359,20.351,5.0]
[1680464466821,24.54,20.365,20.351,5.0]
[1680464466822,24.54,20.361,20.351,5.0]
[1680464467025,24.54,20.365,20.351,5.0]
[1680464467323,49.13,20.36,20.351,5.0]
[1680464468526,49.13,20.36,20.348,0.06320676]
[1680464471028,48.77,20.355,20.348,0.06320676]
[1680464471322,49.02,20.349,20.348,0.06320676]
[1680464471531,49.02,20.349,20.346,5.0]
[1680464471723,49.02,20.349,20.34,0.06192168]
[1680464471925,49.02,20.349,20.345,5.0]
[1680464472124,49.19,20.35,20.345,5.0]
[1680464472727,49.19,20.35,20.34,0.06166245]
[1680464472927,0.06754899,20.352,20.34,0.06166245]
[1680464474720,0.06754899,20.352,20.34,49.25166245]
[1680464474919,0.06754899,20.352,20.341,9.02562509]
[1680464475428,0.06754899,20.352,20.342,9.02562509]
[1680464475630,0.06754899,20.352,20.343,9.02562509]
[1680464476230,0.06754899,20.352,20.34,0.06166245]
[1680464476427,0.06754899,20.352,20.34,9.08561152]
[1680464476732,48.85754899,20.352,20.34,9.08561152]
[1680464476922,48.85754899,20.352,20.341,9.02394907]
[1680464477124,48.85754899,20.352,20.34,0.06166245]
[1680464477627,0.06754899,20.352,20.34,0.06166245]
[1680464477828,49.25754899,20.352,20.34,9.087119]
[1680464478031,0.06754899,20.352,20.341,9.02545655]
[1680464478225,0.06754899,20.352,20.342,9.02482149]
[1680464478428,0.06754899,20.352,20.343,9.02482149]
[1680464478631,0.06754899,20.352,20.34,0.06166245]
[1680464478831,0.06754899,20.352,20.342,49.19]
[1680464479027,0.06754899,20.352,20.343,9.02390696]
[1680464479531,49.19,20.358,20.344,100.0]
[1680464479723,49.19,20.358,20.345,9.02390696]
[1680464480432,49.19,20.361,20.345,58.21390696]
[1680464480635,0.065609,20.359,20.349,49.19]
[1680464480829,0.06419445,20.361,20.349,49.19]
[1680464483732,0.06419445,20.361,20.347,0.06500103]
[1680464483733,49.19,20.36,20.347,0.06500103]
[1680464483935,48.79,20.354,20.347,0.06500103]
[1680464484934,0.06419445,20.361,20.347,0.06500103]
[1680464484935,49.25419445,20.361,20.347,0.06500103]
[1680464487439,149.25419445,20.361,20.347,0.06500103]
[1680464487638,49.25419445,20.361,20.347,0.06500103]
[1680464487847,0.06419445,20.361,20.353,48.9]
[1680464489540,0.06419445,20.361,20.35,49.19]
[1680464489742,0.06419445,20.361,20.348,46.1638]
[1680464490148,0.06419445,20.361,20.349,49.19]
[1680464491242,0.06419445,20.361,20.348,46.1638]
[1680464491640,0.06419445,20.361,20.349,48.9]
[1680464498846,48.79,20.354,20.334,100.0]
[1680464499047,48.79,20.351,20.342,47.1016]
[1680464499248,49.19,20.348,20.334,100.0]
[1680464499444,49.19,20.348,20.335,56.12800534]
[1680464499651,49.19,20.345,20.336,9.02640534]
[1680464500349,0.06524776,20.348,20.336,9.02640534]
[1680464500849,46.5372,20.369,20.345,49.19]
[1680464500850,49.19,20.361,20.345,49.19]
[1680464501048,49.19,20.365,20.346,9.02640534]
[1680464501243,49.19,20.367,20.347,9.02640534]
[1680464501447,49.19,20.364,20.344,146.2]
[1680464501644,49.19,20.364,20.348,49.19]